[Event "Titled Tuesday Blitz August 24 2021"]
[White "Aggelis, Nikolaos"]
[Black "Laurusas, Tomas"]
[WhiteFideId "4213220"]
[BlackFideId "12803731"]
[WhiteElo "2154"]
[BlackElo "2542"]
[Result "0-1"]
[Round "06"]
[TimeControl "180+1"]
[Date "2021.08.24"]
[WhiteClock "0:00:53"]
[BlackClock "0:00:22"]

1. d4 {[%clk 0:02:55]}  Nf6 {[%clk 0:02:59]} 2. g3 {[%clk 0:02:55]}  d5 {[%clk 0:02:57]} 3. Bg2 {[%clk 0:02:55]}  Bf5 {[%clk 0:02:57]} 4. Nf3 {[%clk 0:02:48]}  e6 {[%clk 0:02:55]} 5. c4 {[%clk 0:02:48]}  c6 {[%clk 0:02:55]} 6. Qb3 {[%clk 0:02:48]}  Qb6 {[%clk 0:02:54]} 7. c5 {[%clk 0:02:49]}  Qa6 {[%clk 0:02:54]} 8. Bf1 {[%clk 0:02:48]}  Be4 {[%clk 0:02:50]} 9. Nc3 {[%clk 0:02:45]}  b6 {[%clk 0:02:40]} 10. Nxe4 {[%clk 0:02:45]}  Nxe4 {[%clk 0:02:39]} 11. cxb6 {[%clk 0:02:44]}  axb6 {[%clk 0:02:34]} 12. Nd2 {[%clk 0:02:42]}  Qa5 {[%clk 0:02:30]} 13. f3 {[%clk 0:02:37]}  Nf6 {[%clk 0:02:26]} 14. a3 {[%clk 0:02:31]}  Be7 {[%clk 0:02:10]} 15. Bg2 {[%clk 0:02:30]}  c5 {[%clk 0:02:08]} 16. dxc5 {[%clk 0:02:30]}  bxc5 {[%clk 0:02:08]} 17. O-O {[%clk 0:02:29]}  O-O {[%clk 0:01:59]} 18. e4 {[%clk 0:02:26]}  Nc6 {[%clk 0:01:56]} 19. exd5 {[%clk 0:02:11]}  Nd4 {[%clk 0:01:53]} 20. Qd3 {[%clk 0:02:09]}  exd5 {[%clk 0:01:51]} 21. Nb3 {[%clk 0:02:09]}  Nxb3 {[%clk 0:01:48]} 22. Qxb3 {[%clk 0:02:07]}  c4 {[%clk 0:01:48]} 23. Qc2 {[%clk 0:02:06]}  Rab8 {[%clk 0:01:46]} 24. Be3 {[%clk 0:01:57]}  Bc5 {[%clk 0:01:34]} 25. Bxc5 {[%clk 0:01:54]}  Qxc5+ {[%clk 0:01:35]} 26. Kh1 {[%clk 0:01:55]}  Rb3 {[%clk 0:01:31]} 27. Rfd1 {[%clk 0:01:31]}  Rfb8 {[%clk 0:01:24]} 28. Ra2 {[%clk 0:01:31]}  h5 {[%clk 0:01:22]} 29. a4 {[%clk 0:01:30]}  h4 {[%clk 0:01:22]} 30. g4 {[%clk 0:01:26]}  h3 {[%clk 0:01:19]} 31. Bxh3 {[%clk 0:01:26]}  Rxf3 {[%clk 0:01:20]} 32. Bg2 {[%clk 0:01:26]}  Rf2 {[%clk 0:01:19]} 33. Qc3 {[%clk 0:01:21]}  Nxg4 {[%clk 0:01:11]} 34. Rxd5 {[%clk 0:01:20]}  Rf1+ {[%clk 0:01:08]} 35. Bxf1 {[%clk 0:01:20]}  Qxd5+ {[%clk 0:01:08]} 36. Kg1 {[%clk 0:01:20]}  Qc5+ {[%clk 0:01:03]} 37. Kh1 {[%clk 0:01:15]}  Qf2 {[%clk 0:00:50]} 38. Qh3 {[%clk 0:01:15]}  Ne3 {[%clk 0:00:36]} 39. Ra1 {[%clk 0:01:07]}  Qxb2 {[%clk 0:00:34]} 40. Re1 {[%clk 0:01:00]}  Nxf1 {[%clk 0:00:32]} 41. Qxf1 {[%clk 0:01:00]}  c3 {[%clk 0:00:32]} 42. Qd3 {[%clk 0:00:55]}  c2 {[%clk 0:00:31]} 43. Qd2 {[%clk 0:00:53]}  Qb1 {[%clk 0:00:23]} 44. Rc1 {[%clk 0:00:53]}  Qxc1+ {[%clk 0:00:22]} 45. Qxc1 {[%clk 0:00:53]}  Rb1 {[%clk 0:00:22]} 0-1


[Site "https://www.chess.com"]

[Event "Titled Tuesday Blitz August 24 2021"]
[White "Anuj Shrivatri"]
[Black "Paravyan, David"]
[WhiteFideId "35070924"]
[BlackFideId "4194985"]
[WhiteElo "2038"]
[BlackElo "2562"]
[Result "1-0"]
[Round "06"]
[TimeControl "180+1"]
[Date "2021.08.24"]
[WhiteClock "0:00:53"]
[BlackClock "0:00:02"]

1. d4 {[%clk 0:03:00]}  f5 {[%clk 0:02:06]} 2. g3 {[%clk 0:03:00]}  Nf6 {[%clk 0:02:06]} 3. Bg2 {[%clk 0:03:00]}  g6 {[%clk 0:02:07]} 4. Nf3 {[%clk 0:03:01]}  Bg7 {[%clk 0:02:07]} 5. O-O {[%clk 0:03:01]}  O-O {[%clk 0:02:08]} 6. c4 {[%clk 0:03:01]}  d6 {[%clk 0:02:08]} 7. Nc3 {[%clk 0:03:01]}  a5 {[%clk 0:02:09]} 8. Qb3 {[%clk 0:02:54]}  Kh8 {[%clk 0:02:06]} 9. Bf4 {[%clk 0:02:52]}  Nh5 {[%clk 0:02:03]} 10. Bg5 {[%clk 0:02:50]}  h6 {[%clk 0:02:02]} 11. Bd2 {[%clk 0:02:48]}  e5 {[%clk 0:01:53]} 12. Nh4 {[%clk 0:02:24]}  Qe8 {[%clk 0:01:44]} 13. dxe5 {[%clk 0:02:21]}  dxe5 {[%clk 0:01:45]} 14. Bxb7 {[%clk 0:02:19]}  Bxb7 {[%clk 0:01:42]} 15. Qxb7 {[%clk 0:02:19]}  Nc6 {[%clk 0:01:42]} 16. Qxc7 {[%clk 0:02:08]}  g5 {[%clk 0:01:30]} 17. Ng2 {[%clk 0:01:53]}  Rf7 {[%clk 0:01:29]} 18. Qb6 {[%clk 0:01:50]}  Rb8 {[%clk 0:01:28]} 19. Qc5 {[%clk 0:01:48]}  Nd4 {[%clk 0:01:22]} 20. Be3 {[%clk 0:01:41]}  Rxb2 {[%clk 0:01:11]} 21. Rab1 {[%clk 0:01:30]}  Rc2 {[%clk 0:01:02]} 22. Bxd4 {[%clk 0:01:27]}  exd4 {[%clk 0:01:02]} 23. Nb5 {[%clk 0:01:28]}  Qxe2 {[%clk 0:00:56]} 24. Nxd4 {[%clk 0:01:26]}  Qxc4 {[%clk 0:00:42]} 25. Rb8+ {[%clk 0:01:13]}  Kh7 {[%clk 0:00:41]} 26. Qxc4 {[%clk 0:01:10]}  Rxc4 {[%clk 0:00:42]} 27. Ne6 {[%clk 0:01:06]}  f4 {[%clk 0:00:42]} 28. gxf4 {[%clk 0:01:04]}  gxf4 {[%clk 0:00:29]} 29. f3 {[%clk 0:01:04]}  Rc6 {[%clk 0:00:18]} 30. Nd8 {[%clk 0:01:03]}  Bd4+ {[%clk 0:00:06]} 31. Kh1 {[%clk 0:01:03]}  Rcc7 {[%clk 0:00:06]} 32. Nxf7 {[%clk 0:01:02]}  Rxf7 {[%clk 0:00:07]} 33. Rd1 {[%clk 0:01:02]}  Be3 {[%clk 0:00:05]} 34. Rb5 {[%clk 0:00:59]}  Ng7 {[%clk 0:00:05]} 35. Re5 {[%clk 0:00:57]}  Nf5 {[%clk 0:00:04]} 36. Rdd5 {[%clk 0:00:56]}  Ng7 {[%clk 0:00:01]} 37. Nxe3 {[%clk 0:00:54]}  fxe3 {[%clk 0:00:02]} 38. Rxe3 {[%clk 0:00:55]}  a4 {[%clk 0:00:03]} 39. Kg2 {[%clk 0:00:53]}  Nf5 {[%clk 0:00:02]} 40. Red3 {[%clk 0:00:53]}  Nh4+ {[%clk 0:00:02]} 41. Kf2 {[%clk 0:00:53]}  Kg8 {[%clk 0:00:01]} 42. Rd8+ {[%clk 0:00:53]}  Kg7 {[%clk 0:00:02]} 43. R8d7 {[%clk 0:00:53]} 1-0


[Site "https://www.chess.com"]

[Event "Titled Tuesday Blitz August 24 2021"]
[White "Bai, Adelard"]
[Black "Cunjalo, Faris"]
[WhiteFideId "16301188"]
[BlackFideId "14410710"]
[WhiteElo "2120"]
[BlackElo "2234"]
[Result "0-1"]
[Round "06"]
[TimeControl "180+1"]
[Date "2021.08.24"]
[WhiteClock "0:00:01"]
[BlackClock "0:01:08"]

1. d4 {[%clk 0:03:00]}  e6 {[%clk 0:02:59]} 2. Nf3 {[%clk 0:03:00]}  d5 {[%clk 0:02:57]} 3. Bf4 {[%clk 0:02:59]}  Bd6 {[%clk 0:02:57]} 4. e3 {[%clk 0:02:58]}  Nf6 {[%clk 0:02:55]} 5. Nbd2 {[%clk 0:02:58]}  O-O {[%clk 0:02:55]} 6. Bd3 {[%clk 0:02:52]}  c5 {[%clk 0:02:54]} 7. dxc5 {[%clk 0:02:48]}  Bxc5 {[%clk 0:02:50]} 8. O-O {[%clk 0:02:45]}  Nbd7 {[%clk 0:02:48]} 9. c4 {[%clk 0:02:44]}  b6 {[%clk 0:02:40]} 10. cxd5 {[%clk 0:02:44]}  Nxd5 {[%clk 0:02:41]} 11. Bg3 {[%clk 0:02:32]}  N7f6 {[%clk 0:02:35]} 12. Qe2 {[%clk 0:02:28]}  Bb7 {[%clk 0:02:29]} 13. Rfd1 {[%clk 0:02:25]}  Bd6 {[%clk 0:02:21]} 14. e4 {[%clk 0:02:20]}  Nf4 {[%clk 0:02:17]} 15. Bxf4 {[%clk 0:02:16]}  Bxf4 {[%clk 0:02:18]} 16. e5 {[%clk 0:02:16]}  Nd5 {[%clk 0:02:18]} 17. Ne4 {[%clk 0:02:00]}  Qe7 {[%clk 0:02:00]} 18. Nd6 {[%clk 0:01:59]}  Rad8 {[%clk 0:01:52]} 19. a3 {[%clk 0:01:40]}  Ba8 {[%clk 0:01:49]} 20. Nc4 {[%clk 0:01:09]}  g6 {[%clk 0:01:46]} 21. g3 {[%clk 0:01:08]}  Bh6 {[%clk 0:01:46]} 22. Be4 {[%clk 0:01:09]}  Bg7 {[%clk 0:01:46]} 23. Nd4 {[%clk 0:01:01]}  Qc5 {[%clk 0:01:24]} 24. b4 {[%clk 0:00:49]}  Nc3 {[%clk 0:01:13]} 25. bxc5 {[%clk 0:00:42]}  Nxe2+ {[%clk 0:01:13]} 26. Nxe2 {[%clk 0:00:43]}  Bxe4 {[%clk 0:01:14]} 27. cxb6 {[%clk 0:00:36]}  axb6 {[%clk 0:01:11]} 28. Nc3 {[%clk 0:00:20]}  Bf3 {[%clk 0:01:11]} 29. Re1 {[%clk 0:00:13]}  Rc8 {[%clk 0:01:11]} 30. Nxb6 {[%clk 0:00:02]}  Rxc3 {[%clk 0:01:11]} 31. a4 {[%clk 0:00:03]}  Rc5 {[%clk 0:01:07]} 32. a5 {[%clk 0:00:02]}  Bxe5 {[%clk 0:01:07]} 33. Ra3 {[%clk 0:00:02]}  Bc3 {[%clk 0:01:07]} 34. Re3 {[%clk 0:00:01]}  Bxa5 {[%clk 0:01:08]} 35. Rxf3 {[%clk 0:00:01]}  Bxb6 {[%clk 0:01:08]} 0-1


[Site "https://www.chess.com"]

[Event "Titled Tuesday Blitz August 24 2021"]
[White "Baskin, Robert"]
[Black "Vlassov, Nikolai"]
[WhiteFideId "24662402"]
[BlackFideId "4103360"]
[WhiteElo "2462"]
[BlackElo "2407"]
[Result "0-1"]
[Round "06"]
[TimeControl "180+1"]
[Date "2021.08.24"]
[WhiteClock "0:00:02"]
[BlackClock "0:01:33"]

1. e4 {[%clk 0:03:00]}  c5 {[%clk 0:02:59]} 2. Nf3 {[%clk 0:03:00]}  d6 {[%clk 0:02:59]} 3. Bb5+ {[%clk 0:02:57]}  Nd7 {[%clk 0:02:59]} 4. d4 {[%clk 0:02:50]}  cxd4 {[%clk 0:02:58]} 5. Qxd4 {[%clk 0:02:50]}  e5 {[%clk 0:02:55]} 6. Qd3 {[%clk 0:02:45]}  a6 {[%clk 0:02:55]} 7. Bxd7+ {[%clk 0:02:42]}  Bxd7 {[%clk 0:02:55]} 8. c4 {[%clk 0:02:37]}  Rc8 {[%clk 0:02:55]} 9. Nc3 {[%clk 0:02:33]}  Qc7 {[%clk 0:02:55]} 10. b3 {[%clk 0:02:19]}  b5 {[%clk 0:02:55]} 11. Nd5 {[%clk 0:01:44]}  Qc5 {[%clk 0:02:55]} 12. Nd2 {[%clk 0:01:25]}  Ne7 {[%clk 0:02:52]} 13. O-O {[%clk 0:01:15]}  Nxd5 {[%clk 0:02:51]} 14. cxd5 {[%clk 0:01:09]}  Qc2 {[%clk 0:02:33]} 15. Qxc2 {[%clk 0:01:09]}  Rxc2 {[%clk 0:02:32]} 16. Rd1 {[%clk 0:01:10]}  f5 {[%clk 0:02:31]} 17. Nf1 {[%clk 0:00:57]}  fxe4 {[%clk 0:02:23]} 18. Ne3 {[%clk 0:00:56]}  Rc8 {[%clk 0:02:19]} 19. Ba3 {[%clk 0:00:45]}  Be7 {[%clk 0:02:19]} 20. Rac1 {[%clk 0:00:45]}  Kf7 {[%clk 0:02:17]} 21. Bb4 {[%clk 0:00:41]}  Rxc1 {[%clk 0:02:16]} 22. Rxc1 {[%clk 0:00:40]}  Rc8 {[%clk 0:02:17]} 23. Rxc8 {[%clk 0:00:37]}  Bxc8 {[%clk 0:02:18]} 24. Kf1 {[%clk 0:00:30]}  Bb7 {[%clk 0:02:17]} 25. Ke2 {[%clk 0:00:30]}  Ke8 {[%clk 0:02:17]} 26. g3 {[%clk 0:00:27]}  Kd7 {[%clk 0:02:17]} 27. h4 {[%clk 0:00:27]}  h5 {[%clk 0:02:15]} 28. Ba5 {[%clk 0:00:24]}  g5 {[%clk 0:02:14]} 29. Nf5 {[%clk 0:00:21]}  gxh4 {[%clk 0:02:11]} 30. Nxe7 {[%clk 0:00:17]}  h3 {[%clk 0:02:00]} 31. Kf1 {[%clk 0:00:14]}  Kxe7 {[%clk 0:01:59]} 32. Kg1 {[%clk 0:00:14]}  Bxd5 {[%clk 0:01:59]} 33. Kh2 {[%clk 0:00:15]}  Be6 {[%clk 0:01:59]} 34. Bb4 {[%clk 0:00:14]}  Kd7 {[%clk 0:01:58]} 35. Bc3 {[%clk 0:00:14]}  Kc6 {[%clk 0:01:58]} 36. Bb2 {[%clk 0:00:10]}  Bg4 {[%clk 0:01:56]} 37. Bc3 {[%clk 0:00:08]}  Kd5 {[%clk 0:01:56]} 38. Bb2 {[%clk 0:00:08]}  Ke6 {[%clk 0:01:57]} 39. a4 {[%clk 0:00:08]}  b4 {[%clk 0:01:51]} 40. Bc1 {[%clk 0:00:05]}  d5 {[%clk 0:01:48]} 41. Bd2 {[%clk 0:00:05]}  a5 {[%clk 0:01:48]} 42. Bg5 {[%clk 0:00:03]}  Kd7 {[%clk 0:01:39]} 43. Bf6 {[%clk 0:00:03]}  Bd1 {[%clk 0:01:39]} 44. Bxe5 {[%clk 0:00:01]}  Bxb3 {[%clk 0:01:39]} 45. Bd4 {[%clk 0:00:02]}  Bxa4 {[%clk 0:01:38]} 46. Bb6 {[%clk 0:00:03]}  b3 {[%clk 0:01:38]} 47. Bd4 {[%clk 0:00:02]}  Bb5 {[%clk 0:01:33]} 48. Kxh3 {[%clk 0:00:02]}  a4 {[%clk 0:01:33]} 49. Bb2 {[%clk 0:00:02]}  d4 {[%clk 0:01:33]} 0-1


[Site "https://www.chess.com"]

[Event "Titled Tuesday Blitz August 24 2021"]
[White "Bok, Benjamin"]
[Black "Ovetchkin, Roman"]
[WhiteFideId "1017063"]
[BlackFideId "4119991"]
[WhiteElo "2658"]
[BlackElo "2432"]
[Result "1-0"]
[Round "06"]
[TimeControl "180+1"]
[Date "2021.08.24"]
[WhiteClock "0:01:05"]
[BlackClock "0:00:39"]

1. d4 {[%clk 0:03:00]}  Nf6 {[%clk 0:02:59]} 2. c4 {[%clk 0:03:00]}  g6 {[%clk 0:03:00]} 3. Nf3 {[%clk 0:03:00]}  Bg7 {[%clk 0:03:00]} 4. g3 {[%clk 0:03:00]}  O-O {[%clk 0:03:01]} 5. Bg2 {[%clk 0:03:01]}  d6 {[%clk 0:03:01]} 6. Nc3 {[%clk 0:03:01]}  c6 {[%clk 0:03:02]} 7. e4 {[%clk 0:03:00]}  e5 {[%clk 0:02:54]} 8. O-O {[%clk 0:02:59]}  Nbd7 {[%clk 0:02:49]} 9. Be3 {[%clk 0:02:58]}  Ng4 {[%clk 0:02:46]} 10. Bg5 {[%clk 0:02:57]}  Qb6 {[%clk 0:02:46]} 11. h3 {[%clk 0:02:57]}  Ngf6 {[%clk 0:02:29]} 12. b3 {[%clk 0:02:56]}  exd4 {[%clk 0:02:25]} 13. Nxd4 {[%clk 0:02:57]}  Nc5 {[%clk 0:02:25]} 14. Be3 {[%clk 0:02:47]}  a5 {[%clk 0:02:23]} 15. Qc2 {[%clk 0:02:46]}  Re8 {[%clk 0:02:22]} 16. Rfe1 {[%clk 0:02:45]}  Bd7 {[%clk 0:02:21]} 17. a3 {[%clk 0:02:37]}  h5 {[%clk 0:02:10]} 18. Rab1 {[%clk 0:02:30]}  Qc7 {[%clk 0:02:05]} 19. Red1 {[%clk 0:02:19]}  Rad8 {[%clk 0:01:46]} 20. Bf4 {[%clk 0:02:18]}  Bc8 {[%clk 0:01:45]} 21. b4 {[%clk 0:02:17]}  axb4 {[%clk 0:01:44]} 22. axb4 {[%clk 0:02:18]}  Ncd7 {[%clk 0:01:38]} 23. c5 {[%clk 0:02:11]}  Ne5 {[%clk 0:01:38]} 24. cxd6 {[%clk 0:02:06]}  Rxd6 {[%clk 0:01:37]} 25. Ncb5 {[%clk 0:02:03]}  Qe7 {[%clk 0:01:22]} 26. Nxd6 {[%clk 0:02:03]}  Qxd6 {[%clk 0:01:23]} 27. Nf5 {[%clk 0:01:59]}  Qc7 {[%clk 0:01:18]} 28. Nxg7 {[%clk 0:01:51]}  Kxg7 {[%clk 0:01:19]} 29. Qc3 {[%clk 0:01:51]}  Ng8 {[%clk 0:01:16]} 30. b5 {[%clk 0:01:36]}  f6 {[%clk 0:01:16]} 31. bxc6 {[%clk 0:01:34]}  bxc6 {[%clk 0:01:16]} 32. Rbc1 {[%clk 0:01:29]}  Ne7 {[%clk 0:01:15]} 33. Be3 {[%clk 0:01:24]}  Be6 {[%clk 0:01:07]} 34. Bc5 {[%clk 0:01:20]}  Nc8 {[%clk 0:01:02]} 35. Bd4 {[%clk 0:01:18]}  Ne7 {[%clk 0:01:00]} 36. Bxe5 {[%clk 0:01:14]}  Qxe5 {[%clk 0:00:46]} 37. Qxe5 {[%clk 0:01:13]}  fxe5 {[%clk 0:00:47]} 38. Rd6 {[%clk 0:01:12]}  Kf7 {[%clk 0:00:46]} 39. Rc5 {[%clk 0:01:10]}  Kf6 {[%clk 0:00:39]} 40. h4 {[%clk 0:01:05]} 1-0


[Site "https://www.chess.com"]

[Event "Titled Tuesday Blitz August 24 2021"]
[White "Borsuk, Konstantin"]
[Black "ketster"]
[WhiteFideId "14113406"]
[WhiteElo "2382"]
[BlackElo "2485"]
[Result "1-0"]
[Round "06"]
[TimeControl "180+1"]
[Date "2021.08.24"]
[WhiteClock "0:01:49"]
[BlackClock "0:00:04"]

1. d4 {[%clk 0:03:00]}  Nf6 {[%clk 0:02:59]} 2. c4 {[%clk 0:03:01]}  e6 {[%clk 0:02:59]} 3. Nc3 {[%clk 0:03:02]}  Bb4 {[%clk 0:02:59]} 4. Qc2 {[%clk 0:03:02]}  O-O {[%clk 0:02:59]} 5. a3 {[%clk 0:03:02]}  Bxc3+ {[%clk 0:02:59]} 6. Qxc3 {[%clk 0:03:03]}  d5 {[%clk 0:02:56]} 7. cxd5 {[%clk 0:03:03]}  exd5 {[%clk 0:02:54]} 8. Bg5 {[%clk 0:03:03]}  h6 {[%clk 0:02:49]} 9. Bh4 {[%clk 0:03:03]}  Bf5 {[%clk 0:02:32]} 10. f3 {[%clk 0:02:57]}  Nc6 {[%clk 0:02:19]} 11. e3 {[%clk 0:02:56]}  Re8 {[%clk 0:02:13]} 12. Bf2 {[%clk 0:02:53]}  Qe7 {[%clk 0:02:05]} 13. h3 {[%clk 0:02:50]}  Bg6 {[%clk 0:02:01]} 14. g4 {[%clk 0:02:50]}  a5 {[%clk 0:01:52]} 15. Ne2 {[%clk 0:02:49]}  Nd7 {[%clk 0:01:47]} 16. Nf4 {[%clk 0:02:47]}  Nb6 {[%clk 0:01:31]} 17. Bb5 {[%clk 0:02:41]}  Qd6 {[%clk 0:01:27]} 18. Kf1 {[%clk 0:02:40]}  Bh7 {[%clk 0:01:06]} 19. Rc1 {[%clk 0:02:35]}  Nc4 {[%clk 0:01:04]} 20. Bxc4 {[%clk 0:02:28]}  dxc4 {[%clk 0:01:04]} 21. Qxc4 {[%clk 0:02:28]}  a4 {[%clk 0:01:04]} 22. Kg2 {[%clk 0:02:23]}  Ra5 {[%clk 0:01:01]} 23. d5 {[%clk 0:02:17]}  Ne5 {[%clk 0:00:50]} 24. Qxc7 {[%clk 0:02:14]}  Qxc7 {[%clk 0:00:50]} 25. Rxc7 {[%clk 0:02:15]}  g5 {[%clk 0:00:50]} 26. Nh5 {[%clk 0:02:14]}  Ra6 {[%clk 0:00:37]} 27. e4 {[%clk 0:02:12]}  Nxf3 {[%clk 0:00:35]} 28. Rd1 {[%clk 0:02:02]}  Bxe4 {[%clk 0:00:35]} 29. Kg3 {[%clk 0:02:02]}  Rd6 {[%clk 0:00:26]} 30. Bc5 {[%clk 0:02:00]}  Rg6 {[%clk 0:00:22]} 31. d6 {[%clk 0:02:00]}  Ne5 {[%clk 0:00:17]} 32. d7 {[%clk 0:02:00]}  Nxd7 {[%clk 0:00:13]} 33. Rdxd7 {[%clk 0:01:59]}  Re5 {[%clk 0:00:11]} 34. Rxf7 {[%clk 0:01:56]}  Bc6 {[%clk 0:00:09]} 35. Bd4 {[%clk 0:01:52]}  Rd5 {[%clk 0:00:06]} 36. Rg7+ {[%clk 0:01:48]}  Rxg7 {[%clk 0:00:06]} 37. Bxg7 {[%clk 0:01:49]}  Rd3+ {[%clk 0:00:05]} 38. Kf2 {[%clk 0:01:49]}  Rd2+ {[%clk 0:00:05]} 39. Ke1 {[%clk 0:01:49]}  Rh2 {[%clk 0:00:04]} 40. Nf6# {[%clk 0:01:49]} 1-0


[Site "https://www.chess.com"]

[Event "Titled Tuesday Blitz August 24 2021"]
[White "Cunha, Lucas Aguiar"]
[Black "Wieczorek, Zbigniew"]
[WhiteFideId "2125404"]
[BlackFideId "1102001"]
[WhiteElo "2361"]
[BlackElo "2305"]
[Result "1-0"]
[Round "06"]
[TimeControl "180+1"]
[Date "2021.08.24"]
[WhiteClock "0:01:32"]
[BlackClock "0:00:03"]

1. e4 {[%clk 0:03:00]}  g6 {[%clk 0:02:59]} 2. d4 {[%clk 0:03:00]}  Bg7 {[%clk 0:02:59]} 3. Nc3 {[%clk 0:03:00]}  c6 {[%clk 0:02:59]} 4. a4 {[%clk 0:02:58]}  d5 {[%clk 0:02:59]} 5. e5 {[%clk 0:02:55]}  f6 {[%clk 0:02:59]} 6. f4 {[%clk 0:02:54]}  Nh6 {[%clk 0:02:59]} 7. Be3 {[%clk 0:02:52]}  O-O {[%clk 0:02:58]} 8. h3 {[%clk 0:02:52]}  Bf5 {[%clk 0:02:49]} 9. g4 {[%clk 0:02:49]}  Be4 {[%clk 0:02:49]} 10. Nxe4 {[%clk 0:02:49]}  dxe4 {[%clk 0:02:50]} 11. Bg2 {[%clk 0:02:39]}  f5 {[%clk 0:02:43]} 12. g5 {[%clk 0:02:33]}  Nf7 {[%clk 0:02:42]} 13. h4 {[%clk 0:02:33]}  Qa5+ {[%clk 0:02:27]} 14. c3 {[%clk 0:02:33]}  h5 {[%clk 0:02:04]} 15. Bf1 {[%clk 0:02:27]}  Rd8 {[%clk 0:01:28]} 16. Bc4 {[%clk 0:02:25]}  Kf8 {[%clk 0:01:18]} 17. Qb3 {[%clk 0:02:21]}  e6 {[%clk 0:00:52]} 18. Bxe6 {[%clk 0:02:18]}  Qc7 {[%clk 0:00:52]} 19. Ne2 {[%clk 0:02:15]}  Na6 {[%clk 0:00:48]} 20. Ng3 {[%clk 0:02:10]}  Re8 {[%clk 0:00:46]} 21. Nxf5 {[%clk 0:01:52]}  gxf5 {[%clk 0:00:35]} 22. Bxf5 {[%clk 0:01:53]}  c5 {[%clk 0:00:11]} 23. Bxe4 {[%clk 0:01:47]}  cxd4 {[%clk 0:00:09]} 24. cxd4 {[%clk 0:01:47]}  Nxe5 {[%clk 0:00:04]} 25. fxe5 {[%clk 0:01:44]}  Bxe5 {[%clk 0:00:04]} 26. O-O {[%clk 0:01:38]}  Kg7 {[%clk 0:00:03]} 27. dxe5 {[%clk 0:01:39]}  Qxe5 {[%clk 0:00:03]} 28. Qf7+ {[%clk 0:01:32]}  Kh8 {[%clk 0:00:03]} 29. Qh7# {[%clk 0:01:32]} 1-0


[Site "https://www.chess.com"]

[Event "Titled Tuesday Blitz August 24 2021"]
[White "Escalante Ramirez, Brian Sebasti"]
[Black "Isajevsky, Anton"]
[WhiteFideId "3819566"]
[BlackFideId "4142500"]
[WhiteElo "2214"]
[BlackElo "2510"]
[Result "0-1"]
[Round "06"]
[TimeControl "180+1"]
[Date "2021.08.24"]
[WhiteClock "0:00:08"]
[BlackClock "0:00:09"]

1. e4 {[%clk 0:02:53]}  c5 {[%clk 0:02:59]} 2. Nf3 {[%clk 0:02:53]}  d6 {[%clk 0:03:00]} 3. d4 {[%clk 0:02:52]}  cxd4 {[%clk 0:03:00]} 4. Nxd4 {[%clk 0:02:53]}  Nf6 {[%clk 0:03:01]} 5. Nc3 {[%clk 0:02:52]}  a6 {[%clk 0:03:01]} 6. Be3 {[%clk 0:02:52]}  e5 {[%clk 0:03:01]} 7. Nf3 {[%clk 0:02:52]}  Be7 {[%clk 0:02:56]} 8. Bc4 {[%clk 0:02:52]}  O-O {[%clk 0:02:56]} 9. O-O {[%clk 0:02:52]}  Nc6 {[%clk 0:02:45]} 10. a4 {[%clk 0:02:45]}  Be6 {[%clk 0:02:42]} 11. Qe2 {[%clk 0:02:36]}  Rc8 {[%clk 0:02:36]} 12. Bxe6 {[%clk 0:02:27]}  fxe6 {[%clk 0:02:36]} 13. a5 {[%clk 0:02:27]}  Nd7 {[%clk 0:01:12]} 14. Qc4 {[%clk 0:01:43]}  Nd4 {[%clk 0:01:08]} 15. Qa2 {[%clk 0:01:43]}  Nxf3+ {[%clk 0:01:01]} 16. gxf3 {[%clk 0:01:44]}  Rf6 {[%clk 0:01:01]} 17. Kg2 {[%clk 0:01:10]}  Nf8 {[%clk 0:01:00]} 18. Rg1 {[%clk 0:01:03]}  Qe8 {[%clk 0:00:50]} 19. Kh1 {[%clk 0:01:03]}  Qh5 {[%clk 0:00:49]} 20. Rg3 {[%clk 0:00:58]}  Rxf3 {[%clk 0:00:48]} 21. Rag1 {[%clk 0:00:58]}  Rxg3 {[%clk 0:00:48]} 22. Rxg3 {[%clk 0:00:59]}  Bh4 {[%clk 0:00:35]} 23. Rg2 {[%clk 0:00:58]}  Qf3 {[%clk 0:00:30]} 24. Qb3 {[%clk 0:00:56]}  Rc7 {[%clk 0:00:25]} 25. Qb4 {[%clk 0:00:39]}  Rd7 {[%clk 0:00:20]} 26. Qc4 {[%clk 0:00:37]}  Bd8 {[%clk 0:00:14]} 27. Bb6 {[%clk 0:00:21]}  Bxb6 {[%clk 0:00:13]} 28. axb6 {[%clk 0:00:22]}  Rf7 {[%clk 0:00:13]} 29. Kg1 {[%clk 0:00:16]}  Qf4 {[%clk 0:00:13]} 30. Qd3 {[%clk 0:00:12]}  Qc1+ {[%clk 0:00:12]} 31. Nd1 {[%clk 0:00:13]}  Rd7 {[%clk 0:00:09]} 32. f3 {[%clk 0:00:11]}  d5 {[%clk 0:00:09]} 33. Qd2 {[%clk 0:00:09]}  Qb1 {[%clk 0:00:09]} 34. Re2 {[%clk 0:00:08]}  dxe4 {[%clk 0:00:09]} 0-1


[Site "https://www.chess.com"]

[Event "Titled Tuesday Blitz August 24 2021"]
[White "Espinosa Veloz, Ermes"]
[Black "Svane, Frederik"]
[WhiteFideId "3507424"]
[BlackFideId "12923044"]
[WhiteElo "2333"]
[BlackElo "2459"]
[Result "0-1"]
[Round "06"]
[TimeControl "180+1"]
[Date "2021.08.24"]
[WhiteClock "0:01:17"]
[BlackClock "0:02:27"]

1. e4 {[%clk 0:03:00]}  c5 {[%clk 0:03:00]} 2. Nf3 {[%clk 0:03:00]}  e6 {[%clk 0:02:57]} 3. d4 {[%clk 0:02:57]}  cxd4 {[%clk 0:02:58]} 4. Nxd4 {[%clk 0:02:57]}  Nc6 {[%clk 0:02:59]} 5. Nc3 {[%clk 0:02:55]}  Qc7 {[%clk 0:02:59]} 6. Be3 {[%clk 0:02:55]}  a6 {[%clk 0:02:59]} 7. Qf3 {[%clk 0:02:54]}  Ne5 {[%clk 0:02:57]} 8. Qg3 {[%clk 0:02:53]}  h5 {[%clk 0:02:58]} 9. f4 {[%clk 0:02:52]}  h4 {[%clk 0:02:58]} 10. Qh3 {[%clk 0:02:49]}  Ng6 {[%clk 0:02:59]} 11. Qf3 {[%clk 0:02:29]}  Bb4 {[%clk 0:02:48]} 12. Bd2 {[%clk 0:02:21]}  Bxc3 {[%clk 0:02:39]} 13. Qxc3 {[%clk 0:02:10]}  Qxc3 {[%clk 0:02:37]} 14. bxc3 {[%clk 0:02:10]}  d6 {[%clk 0:02:36]} 15. Bd3 {[%clk 0:02:00]}  e5 {[%clk 0:02:35]} 16. Nf5 {[%clk 0:01:47]}  Bxf5 {[%clk 0:02:31]} 17. exf5 {[%clk 0:01:48]}  Nxf4 {[%clk 0:02:32]} 18. Bxf4 {[%clk 0:01:35]}  exf4 {[%clk 0:02:33]} 19. Be4 {[%clk 0:01:34]}  O-O-O {[%clk 0:02:31]} 20. Rb1 {[%clk 0:01:33]}  Re8 {[%clk 0:02:31]} 21. Kf2 {[%clk 0:01:20]}  Rxe4 {[%clk 0:02:29]} 22. Kf3 {[%clk 0:01:21]}  Nf6 {[%clk 0:02:28]} 23. Rhd1 {[%clk 0:01:19]}  Rhe8 {[%clk 0:02:27]} 24. Rxd6 {[%clk 0:01:18]}  Re3+ {[%clk 0:02:27]} 25. Kxf4 {[%clk 0:01:17]}  R8e4+ {[%clk 0:02:27]} 0-1


[Site "https://www.chess.com"]